bitfinex/quotes_ETHUSD_20220202
["timestamp","ask_amount","ask_price","bid_price","bid_amount"]
[1643763764744,0.90269,2770.7,2769.4,7.47]
[1643763764944,4.51461,2770.4,2769.3,0.3597893]
[1643763765141,4.51461,2770.4,2769.1,0.19246327]
[1643763765142,2.6994,2770.3,2769.1,0.19246327]
[1643763765445,22.09512241,2770.2,2769.1,0.1804]
[1643763765640,21.09,2770.0,2769.1,0.1804]
[1643763765840,0.9994,2769.9,2769.1,0.1804]
[1643763766040,1.9994,2769.9,2769.1,0.1804]
[1643763766254,3.9994,2769.9,2769.1,0.1804]
[1643763766446,6.486,2769.7,2769.1,0.1804]
[1643763766648,7.5494,2769.6,2769.1,0.1804]
[1643763766891,7.8494,2769.6,2769.1,0.1804]
[1643763767290,0.6994,2769.6,2769.1,0.1804]
[1643763767490,0.9994,2769.6,2769.1,0.1804]
[1643763767688,0.6994,2769.6,2769.1,0.1804]
[1643763767890,0.9994,2769.6,2769.1,0.1804]
[1643763768288,1.119,2769.6,2768.9,0.42556264]
[1643763768488,0.6994,2769.6,2768.9,0.42556264]
[1643763768889,0.6994,2769.6,2769.3,0.84236478]
[1643763769700,2.72058305,2769.6,2768.9,0.42556264]
[1643763769895,2.72895082,2769.6,2768.5,1.0]
[1643763770094,3.02689003,2769.6,2768.4,3.61281831]
[1643763770293,3.32689003,2769.6,2768.4,3.61281831]
[1643763770494,1.2994,2769.6,2768.4,3.61281831]
[1643763770734,1.2994,2769.6,2768.9,0.79655316]
[1643763771134,0.1804,2769.8,2768.9,0.79655316]
[1643763771433,0.90283,2770.1,2769.0,0.1804]
[1643763771733,0.90283,2770.1,2768.9,0.79655316]
[1643763771734,0.1804,2770.0,2769.3,0.32922243]
[1643763771935,0.1804,2770.0,2768.9,0.79655316]
[1643763772733,0.3,2769.9,2768.9,0.79655316]
[1643763772934,0.3,2769.9,2769.2,0.42231621]
[1643763773138,0.3,2769.9,2768.9,0.79655316]
[1643763773139,2.18665978,2769.8,2768.9,0.79655316]
[1643763773434,2.18665978,2769.8,2768.7,6.9432]
[1643763773435,0.519,2769.7,2768.7,6.7628]
[1643763773637,5.05,2769.5,2768.5,0.1804]
[1643763773837,2.40498731,2769.6,2768.3,1.1083619]
[1643763773838,3.00519964,2769.4,2768.4,3.5999]
[1643763774051,3.30609308,2769.4,2768.4,3.5499]
[1643763774234,3.60609308,2769.4,2768.6,0.40305495]
[1643763774488,1.2994,2769.4,2768.6,1.0824185]
[1643763774692,0.9994,2769.4,2768.6,1.0824185]
[1643763774894,0.90311,2769.3,2768.6,1.0824185]
[1643763775088,0.9994,2769.2,2768.6,1.0824185]
[1643763775287,1.2994,2769.2,2768.6,0.40305495]
[1643763775792,1.2994,2769.2,2768.3,1.1083619]
[1643763775989,1.80648,2769.0,2768.3,1.1083619]
[1643763776194,0.6994,2768.9,2768.3,1.1083619]
[1643763776692,2.9994,2768.9,2768.3,1.1083619]
[1643763776892,4.41571656,2768.9,2768.3,1.1083619]
[1643763777090,2.41571656,2768.9,2768.3,1.1083619]
[1643763777291,1.9494,2768.9,2768.3,1.1083619]
[1643763777690,23.0394,2768.9,2768.3,1.1083619]
[1643763778145,2.20283806,2768.8,2768.3,1.1083619]
[1643763778345,1.60284,2768.7,2768.3,1.1083619]
[1643763778549,2.23824924,2768.6,2768.3,1.1083619]
[1643763778750,2.23824924,2768.6,2767.2,0.00147757]
[1643763778751,7.5556832,2768.5,2767.2,0.00147757]
[1643763778948,9.13927009,2768.4,2767.2,0.01352314]
[1643763779148,0.6996,2768.3,2767.2,0.01204557]
[1643763779347,2.02971679,2768.2,2767.2,0.01204557]
[1643763779547,0.6996,2768.1,2766.7,14.79485748]
[1643763779748,0.9996,2768.1,2767.4,0.32527349]
[1643763779950,2.32025416,2768.0,2767.6,0.78446852]
[1643763780156,0.6996,2767.9,2767.6,0.78446852]
[1643763780348,0.6996,2767.9,2767.6,0.73446852]
[1643763780552,0.6996,2767.9,2767.4,0.32527349]
[1643763780951,0.90358,2767.8,2767.4,0.32527349]
[1643763781653,0.6996,2767.9,2767.4,0.32527349]
[1643763781654,0.1806,2767.9,2767.4,0.32527349]
[1643763781913,0.1806,2768.3,2767.5,0.83267269]
[1643763782116,0.1806,2768.3,2768.1,0.42564573]
[1643763782314,0.1806,2768.4,2768.1,0.42564573]
[1643763782513,2.32567,2768.9,2768.1,0.42564573]
[1643763782514,0.1806,2768.8,2768.1,0.42564573]
[1643763782912,0.1806,2768.8,2768.2,0.6714339]
[1643763783314,0.7806,2768.8,2768.2,0.6714339]
[1643763784114,0.3,2768.7,2768.2,0.6714339]
[1643763784317,0.1806,2768.6,2768.2,0.6714339]
[1643763784518,0.4806,2768.7,2768.2,0.6714339]
[1643763784720,0.1806,2768.7,2768.2,0.6714339]
[1643763784920,0.1806,2768.9,2768.7,0.88642298]
[1643763785324,0.90309,2769.4,2768.7,0.88642298]
[1643763785325,1.08349,2769.4,2768.7,0.88642298]
[1643763785936,1.08349,2769.4,2768.3,0.40621928]
[1643763786138,2.58996114,2769.3,2768.3,0.40621928]
[1643763786337,2.58996114,2769.3,2767.8,0.1804]
[1643763786338,1.1804,2769.2,2767.8,0.1804]
[1643763786536,0.90332,2768.8,2767.8,0.1804]
[1643763786736,0.1806,2768.7,2767.7,8.3462]
[1643763786935,0.1806,2768.7,2767.7,7.1726]
[1643763787335,2.24660726,2768.7,2768.1,0.37606283]
[1643763787737,2.24660726,2768.7,2767.7,3.6026]
[1643763787942,0.519,2768.6,2767.7,3.6026]
[1643763788137,0.819,2768.6,2767.8,1.0]
[1643763788336,0.769,2768.6,2768.2,0.90524699]
[1643763788536,1.069,2768.6,2768.2,0.90524699]
[1643763788936,1.069,2768.6,2768.4,0.33092965]
[1643763789391,1.069,2768.6,2767.7,3.6026]
[1643763789598,2.87634117,2768.5,2767.7,3.6026]
[1643763789795,0.519,2768.4,2767.7,3.6026]
[1643763789998,2.18474855,2768.3,2767.7,3.6026]
[1643763790197,0.519,2768.2,2767.7,3.6026]
[1643763790394,0.519,2768.2,2767.7,3.9771244]
[1643763790599,0.519,2768.2,2767.7,4.70573992]
[1643763790600,1.97151277,2768.1,2767.7,4.70573992]
[1643763790795,0.3,2768.1,2767.7,1.10313992]
[1643763791396,2.79548659,2768.2,2767.7,0.72861552]
[1643763791595,0.819,2768.2,2767.7,0.72861552]
[1643763792197,0.519,2768.2,2767.7,0.72861552]
[1643763792399,0.90329,2768.8,2767.7,0.72861552]
[1643763792400,0.1806,2768.7,2767.7,0.72861552]
[1643763792799,2.21388019,2768.7,2767.7,0.72861552]
[1643763793442,0.1806,2768.7,2767.8,0.33459887]
[1643763793641,2.16782986,2768.7,2767.8,0.33459887]
[1643763794042,0.519,2768.6,2767.8,0.33459887]
[1643763794242,0.1806,2768.5,2767.8,0.33459887]
[1643763796908,0.1806,2768.5,2767.3,0.1806]
[1643763796909,0.519,2768.4,2767.3,0.1806]
[1643763797202,0.1806,2768.3,2767.3,0.1806]
[1643763797396,0.519,2768.2,2767.3,0.1806]
[1643763797597,0.1806,2768.1,2767.3,0.1806]
[1643763797796,0.519,2768.0,2767.3,0.1806]
[1643763798200,0.819,2768.0,2767.5,0.73353432]
[1643763798596,1.119,2768.0,2767.5,0.73353432]
[1643763800502,1.069,2768.0,2767.2,4.28111592]
[1643763801567,1.069,2768.0,2767.4,0.7710285]
[1643763802170,1.069,2768.0,2767.2,4.28111592]
[1643763803371,1.069,2768.0,2767.4,0.92701805]
[1643763804171,1.069,2768.0,2767.2,1.20813397]
[1643763804799,1.069,2768.0,2767.2,0.41141592]
[1643763804998,1.069,2768.0,2767.2,1.33155918]
[1643763809346,1.95863793,2767.9,2767.2,1.33155918]
[1643763809550,1.069,2768.0,2767.2,1.33155918]
[1643763809850,1.99900358,2767.9,2766.8,4.9629]
[1643763810050,1.97257,2768.0,2766.8,4.9629]
[1643763810553,2.15317,2768.0,2766.8,4.9629]
[1643763811361,2.15317,2768.0,2767.0,0.85871879]
[1643763811551,2.15317,2768.0,2767.1,0.3754563]
[1643763811751,1.97257,2768.0,2767.1,0.3754563]
[1643763812904,1.97257,2768.0,2766.8,0.1806]
[1643763812905,0.90368,2767.7,2766.8,0.1806]
[1643763813106,2.519,2767.6,2766.8,0.1806]
[1643763813301,1.1806,2767.5,2766.8,0.1806]
[1643763813499,0.519,2767.4,2766.8,0.1806]
[1643763813699,0.1806,2767.3,2766.8,0.1806]
[1643763813909,0.519,2767.2,2766.9,0.42896867]
[1643763814102,1.08446,2767.1,2766.9,0.42896867]
[1643763814300,0.519,2767.0,2766.8,0.1806]
[1643763814504,0.819,2767.0,2766.8,0.1806]
[1643763815403,0.819,2767.0,2766.8,0.62757515]
[1643763816852,0.519,2767.0,2766.8,0.62757515]
[1643763817052,0.1807,2767.4,2766.8,0.44697515]
[1643763817452,0.1806,2767.5,2766.8,0.44697515]
[1643763818151,0.1806,2767.5,2767.4,1.17399282]
[1643763818961,0.1806,2767.9,2767.4,1.17399282]
[1643763819153,2.1806,2768.3,2767.4,1.17399282]
[1643763819404,0.1806,2768.3,2767.9,0.82257978]
[1643763819616,0.1806,2768.3,2767.0,0.19305819]
[1643763819908,2.1806,2768.3,2767.0,0.01295819]
[1643763820508,2.1806,2768.3,2767.9,0.39123241]
[1643763820710,0.4806,2768.3,2767.9,0.39123241]
[1643763821109,0.1806,2768.3,2767.9,0.39123241]
[1643763823657,0.1376,2769.2,2767.9,0.39123241]
[1643763823658,0.1806,2768.7,2767.9,0.39123241]
[1643763823857,0.1804,2769.1,2768.0,0.18508764]
[1643763824255,2.519,2769.8,2768.0,0.36548764]
[1643763824256,0.1804,2769.7,2768.0,0.36548764]
[1643763824458,0.1804,2769.7,2768.0,2.36548764]
[1643763824459,1.52638526,2769.6,2768.0,2.36548764]
[1643763824659,2.1804,2769.5,2768.1,0.43532194]
[1643763824859,2.1804,2769.5,2769.4,0.75028143]
[1643763825059,1.70674201,2769.5,2768.4,0.51258113]
[1643763825259,0.1804,2769.5,2768.4,2.40297519]
[1643763825659,0.1804,2769.7,2768.4,2.40297519]
[1643763825859,1.52629334,2769.6,2768.4,2.70297519]
[1643763826062,7.01934219,2770.1,2768.4,2.70297519]
[1643763826063,0.1804,2769.8,2768.6,1.0]
[1643763826264,3.34545612,2770.1,2768.7,0.1804]
[1643763826265,0.1804,2770.0,2768.7,0.1804]
[1643763826461,1.52623424,2769.9,2769.3,0.7797161]
[1643763826666,0.1804,2769.8,2769.5,0.36966252]
[1643763826903,1.52623424,2769.7,2769.3,0.7797161]
[1643763827406,3.51612537,2769.6,2768.5,0.1804]
[1643763827706,1.82623424,2769.5,2768.5,0.1804]
[1643763827905,1.70663424,2769.4,2769.0,0.42921405]
[1643763828103,0.4804,2769.4,2769.0,0.42921405]
[1643763828304,2.76169184,2769.4,2768.4,1.0]
[1643763828505,2.76169184,2769.4,2768.3,8.8242]
[1643763828506,1.52648434,2769.3,2768.3,8.8242]
[1643763828703,2.43803169,2769.2,2768.3,8.8242]
[1643763828905,2.73803169,2769.2,2768.3,3.8915]
[1643763829104,0.6,2769.2,2768.3,3.8915]
[1643763829309,2.99505295,2769.4,2769.0,0.40927303]
[1643763829511,3.6,2769.1,2769.0,0.40927303]
[1643763829908,0.3,2769.1,2769.0,0.40927303]
[1643763830108,0.4804,2769.3,2769.0,0.40927303]
[1643763830756,0.1804,2769.3,2768.8,0.72228924]
[1643763830952,0.1804,2769.3,2768.3,3.8915]
[1643763831156,2.18967753,2769.3,2768.3,3.8915]
[1643763831751,0.1804,2769.3,2768.3,3.8915]
[1643763832150,0.1804,2769.3,2768.9,0.38076504]
[1643763834154,0.1804,2769.4,2768.8,0.90872937]
[1643763834399,0.4804,2769.4,2768.8,0.90872937]
[1643763835703,0.4804,2769.4,2768.9,0.4230413]
[1643763837605,0.1804,2769.4,2768.9,0.4230413]
[1643763838252,0.1804,2769.4,2768.8,0.90872937]
[1643763838852,0.4804,2769.4,2768.3,3.8915]
[1643763839253,0.90313,2769.2,2768.3,3.8915]
[1643763839459,2.36664946,2769.1,2768.3,3.8915]
[1643763839657,0.3,2769.0,2768.3,3.8915]
[1643763839864,0.3,2769.0,2768.2,3.7112]
[1643763839865,4.15708096,2768.9,2768.2,4.65988524]
[1643763840057,3.1108333,2768.9,2768.2,0.94868524]
[1643763840257,3.1108333,2768.9,2768.4,0.34590468]
[1643763840460,0.9994,2768.9,2768.4,0.34590468]
[1643763840859,0.90323,2768.8,2768.4,0.34590468]
[1643763841060,0.6994,2768.7,2768.4,0.34590468]
[1643763841360,0.6994,2768.7,2768.2,0.94868524]
[1643763841761,0.6994,2768.7,2767.9,6.8115]
[1643763842004,0.6994,2768.7,2767.8,3.5394]
[1643763842406,0.6994,2768.7,2768.1,0.41692122]
[1643763842605,0.6994,2768.7,2768.1,1.23169064]
[1643763842802,0.6994,2768.7,2767.8,3.5394]
[1643763843004,0.90335,2768.5,2767.8,3.5394]
[1643763843306,3.18030766,2768.4,2767.8,3.5394]
[1643763843504,3.18030766,2768.4,2767.6,1.1437]
[1643763843703,3.18030766,2768.4,2767.2,3.6795]
[1643763843903,3.18030766,2768.4,2767.4,0.82636228]
[1643763845017,0.90356,2768.1,2767.4,0.82636228]
[1643763845206,0.4806,2768.0,2767.4,0.82636228]
[1643763848158,0.1806,2768.0,2767.4,0.82636228]
[1643763848561,0.1806,2768.0,2767.3,0.41434267]
[1643763848562,2.51371922,2768.0,2767.3,0.41434267]
[1643763848764,2.32623,2767.9,2767.3,0.41434267]
[1643763848960,0.1806,2767.8,2767.3,0.41434267]
[1643763849162,0.6996,2767.8,2767.3,0.41434267]
[1643763849602,0.9996,2767.8,2767.3,1.25877229]
[1643763849805,3.277607,2767.8,2767.3,1.25877229]
[1643763850002,1.29830514,2767.8,2767.3,1.25877229]
[1643763850403,0.99830514,2767.8,2767.3,1.25877229]
[1643763850603,0.9996,2767.8,2767.3,1.25877229]
[1643763850804,1.90317,2767.8,2767.3,1.25877229]
[1643763851203,0.3,2767.7,2767.3,1.25877229]
[1643763853662,0.3,2767.7,2767.3,0.84442962]
[1643763854059,0.3,2767.7,2766.7,7.3441]
[1643763854261,0.3,2767.7,2766.8,1.1806]
[1643763854664,0.3,2767.7,2767.0,0.33053551]
[1643763855066,0.3,2767.7,2766.9,0.88973782]
[1643763855270,1.95934489,2767.6,2766.9,0.88973782]
[1643763855474,0.90364,2767.6,2766.9,0.88973782]
[1643763856269,0.90364,2767.6,2767.2,0.38671125]
[1643763856901,0.4806,2767.7,2767.2,0.38671125]
[1643763857103,0.3,2767.7,2767.2,0.38671125]
[1643763857604,1.90313,2767.8,2767.5,0.73925149]
[1643763857605,1.08413,2767.8,2767.5,0.73925149]
[1643763857903,0.1806,2768.1,2767.5,0.73925149]
[1643763859007,0.1806,2768.1,2767.7,0.34789923]
[1643763862363,0.1806,2768.1,2766.8,8.6866]
[1643763862364,0.90352,2767.9,2766.8,8.6866]
[1643763862563,1.90312,2767.9,2766.8,8.6866]
[1643763862863,2.02252,2767.9,2766.8,8.6866]
[1643763863065,1.97946287,2767.8,2766.8,8.6866]
[1643763863272,2.02252,2767.9,2766.8,8.6866]
[1643763863670,2.02252,2767.9,2767.2,0.31552179]
[1643763865004,0.1806,2767.8,2767.2,0.31552179]
[1643763867305,2.20312,2767.9,2767.2,0.31552179]
[1643763872504,1.60312,2767.9,2767.2,0.31552179]
[1643763872704,3.60883992,2767.9,2767.2,0.31552179]
[1643763872904,3.64054038,2767.9,2767.2,0.31552179]
[1643763873708,3.94054038,2767.9,2767.2,0.31552179]
[1643763873905,4.24054038,2767.9,2767.2,0.31552179]
[1643763874507,4.23943943,2767.9,2767.2,0.31552179]
[1643763874707,2.20201905,2767.9,2767.2,0.31552179]
[1643763874910,4.19108155,2767.9,2767.2,0.31552179]
[1643763877276,1.0,2767.8,2766.8,7.6866]
[1643763877462,3.70779739,2767.7,2766.8,1.2403]
[1643763877665,3.70779739,2767.7,2766.3,8.2074]
[1643763877666,5.37063657,2767.7,2766.3,8.2074]
[1643763877860,5.37063657,2767.7,2766.3,8.0268]
[1643763877861,0.01717756,2767.5,2766.3,8.0268]
[1643763878063,2.50751,2767.4,2766.3,8.0268]
[1643763878259,0.00362916,2767.2,2766.6,0.34612538]
[1643763878465,0.6997,2767.1,2766.6,0.34612538]
[1643763878880,0.1807,2767.1,2766.6,0.34612538]
[1643763879507,0.1807,2767.1,2767.0,0.82830281]
[1643763879711,0.00362916,2767.2,2767.1,0.38336962]
[1643763879908,0.1806,2767.6,2767.1,0.38336962]
[1643763880309,0.4806,2767.6,2767.1,0.38336962]
[1643763880713,0.9036863,2767.5,2767.1,0.38336962]
[1643763880915,1.60326,2767.4,2767.1,0.38336962]
[1643763881114,0.3,2767.3,2767.1,0.38336962]
[1643763881313,0.3,2767.3,2766.3,8.03905537]
[1643763881314,0.3,2767.3,2766.8,0.80006651]
[1643763882518,0.3,2767.3,2767.2,0.38048581]
[1643763882922,0.3,2767.3,2766.8,0.80006651]
[1643763884062,1.60326,2767.4,2766.8,0.80006651]
[1643763885261,0.3,2767.3,2767.1,0.3440774]
[1643763886062,0.3,2767.3,2766.8,0.80006651]
[1643763887317,0.3,2767.3,2767.0,0.35727108]
[1643763887920,0.3,2767.3,2766.8,0.80006651]
[1643763888319,0.3,2767.3,2766.3,8.0268]
[1643763888320,0.90373,2767.0,2766.3,8.0268]
[1643763888521,0.90373,2767.0,2766.3,6.7963]
[1643763888723,0.6,2766.9,2766.2,3.7121]
[1643763888921,0.6,2766.9,2766.3,0.4244605]
[1643763890121,0.6,2766.9,2766.8,0.71339211]
[1643763890521,0.6,2766.9,2766.3,0.4244605]
[1643763891758,0.6,2766.9,2766.4,0.86393621]
[1643763892386,0.6,2766.9,2766.4,0.76393621]
[1643763897414,1.5038227,2766.9,2766.4,0.76393621]
[1643763897617,1.80769,2766.8,2766.4,0.76393621]
[1643763897814,2.10769,2766.8,2766.4,0.76393621]
[1643763898655,0.9038961,2766.7,2766.4,0.76393621]
[1643763898854,0.3,2766.6,2766.4,0.76393621]
[1643763899865,2.10779,2766.6,2766.4,0.76393621]
[1643763900058,2.10779,2766.6,2766.3,0.4244605]
[1643763900059,0.3,2766.5,2766.3,0.4244605]
[1643763900660,1.20384,2766.6,2766.3,0.4244605]
[1643763901361,1.20384,2766.6,2766.5,0.94889934]
[1643763901560,1.20384,2766.6,2766.3,0.4244605]
[1643763905020,2.4807,2766.5,2765.2,0.1807]
[1643763905217,2.40817,2766.3,2765.2,0.1807]
[1643763905418,4.50822,2766.2,2765.2,0.04206334]
[1643763905653,0.3,2766.1,2765.2,0.04206334]
[1643763905854,0.6997,2766.0,2765.1,0.04263176]
[1643763906057,0.6997,2766.0,2765.0,11.9570619]
[1643763906058,4.50832,2766.0,2765.0,11.94969366]
[1643763906261,0.90431,2765.8,2765.0,1.10099366]
[1643763906454,2.6997,2765.7,2765.0,1.10099366]
[1643763906657,3.2997,2765.7,2765.0,1.10099366]
[1643763906854,1.0,2765.6,2765.0,1.10099366]
[1643763907055,0.519,2765.5,2765.0,1.10099366]
[1643763907259,3.15274133,2765.4,2765.0,1.45216555]
[1643763907458,3.2322555,2765.3,2765.0,1.45216555]
[1643763907661,3.5322555,2765.3,2765.0,1.10099366]
[1643763907855,2.23861003,2765.2,2765.0,1.10099366]
[1643763908056,1.95963692,2765.1,2765.0,1.10099366]
[1643763908258,2.25963692,2765.1,2765.0,1.10099366]
[1643763908558,0.3,2765.1,2765.0,1.10099366]
[1643763908958,2.24109694,2765.1,2765.0,1.10099366]
[1643763909157,0.3,2765.1,2765.0,1.10099366]
[1643763910609,2.57190146,2765.1,2765.0,1.10099366]
[1643763910811,2.75260146,2765.1,2765.0,1.10099366]
[1643763911209,0.4807,2765.1,2765.0,1.10099366]
[1643763911410,0.1807,2765.1,2765.0,1.10099366]
[1643763911613,1.08512,2765.3,2765.0,1.10099366]
[1643763911813,0.90417,2765.5,2765.0,1.10099366]
[1643763912009,0.1807,2765.4,2765.0,1.10099366]
[1643763912409,0.1807,2765.4,2765.1,0.31647323]
[1643763912816,0.4807,2765.4,2765.1,0.31647323]
[1643763913253,0.7807,2765.4,2765.1,0.31647323]
[1643763913657,0.6,2765.4,2765.1,0.31647323]
[1643763913861,2.1086,2765.4,2765.1,0.31647323]
[1643763914156,2.4086,2765.4,2765.1,0.31647323]
[1643763914962,1.8086,2765.4,2765.1,0.31647323]
[1643763915162,0.90417,2765.5,2765.1,0.31647323]
[1643763916363,0.90408,2765.9,2765.1,0.31647323]
[1643763917308,0.90408,2765.9,2765.8,0.76187679]
[1643763917508,1.20408,2765.9,2765.8,0.76187679]
[1643763917706,1.20408,2765.9,2765.2,3.5951]
[1643763917707,1.50408,2765.9,2765.2,3.5951]
[1643763917913,0.3,2765.8,2765.1,0.31647323]
[1643763918106,0.6,2765.8,2765.1,0.31647323]
[1643763918307,0.90415,2765.7,2765.1,0.31647323]
[1643763919007,0.90415,2765.7,2765.2,0.79668258]
[1643763919810,1.20415,2765.7,2765.2,0.79668258]
[1643763920309,0.90415,2765.7,2765.2,0.79668258]
[1643763921563,0.1807,2766.0,2765.2,0.79668258]
[1643763921763,1.80793,2766.5,2766.2,0.79839562]
[1643763921764,0.3,2766.3,2766.2,0.79839562]
[1643763921962,0.3,2766.3,2765.3,0.01200291]
[1643763922364,0.3,2766.3,2765.3,1.01200291]
[1643763922561,0.3,2766.3,2765.3,1.19210291]
[1643763922764,0.3,2766.3,2765.3,1.01200291]
[1643763923765,0.904,2766.1,2765.3,1.01200291]
[1643763923967,0.904,2766.1,2765.4,0.72957917]
[1643763924416,0.1807,2766.3,2765.5,0.1801]
[1643763924621,0.1807,2766.7,2765.6,0.18926014]
[1643763924820,1.0845,2766.7,2765.7,0.1801]
[1643763925024,0.1807,2767.3,2765.9,0.01249464]
[1643763925221,1.3192,2767.3,2766.9,0.39330239]
[1643763925420,1.3192,2767.3,2765.8,0.1851276]
[1643763925421,1.80747,2767.1,2765.8,0.1851276]
[1643763925620,1.80747,2767.1,2765.8,0.1807]
[1643763925621,0.1807,2767.0,2765.8,0.1807]
[1643763926422,0.1807,2767.0,2765.9,0.56789232]
[1643763926621,2.0,2767.1,2767.0,0.34911957]
[1643763926622,0.1807,2767.1,2767.0,0.34911957]
[1643763926821,0.90372,2767.2,2767.0,0.34911957]
[1643763927525,0.1806,2767.4,2767.0,0.34911957]
[1643763927724,0.1806,2767.9,2767.0,0.34911957]
[1643763928157,0.1806,2768.3,2767.0,0.35588406]
[1643763928368,1.5273592,2768.2,2767.8,0.95445428]
[1643763928559,0.1806,2768.1,2766.9,0.18715752]
[1643763928759,0.01279711,2768.5,2767.1,1.8067041]
[1643763928760,0.1806,2768.4,2767.1,1.8067041]
[1643763928964,0.1306,2768.4,2767.3,0.00963643]
[1643763929158,0.1806,2768.5,2767.3,0.00963643]
[1643763929359,0.1806,2768.5,2767.4,0.1801]
[1643763929563,0.1806,2768.5,2768.2,0.75610113]
[1643763929764,0.1806,2768.5,2768.3,0.37683321]
[1643763929964,0.90319,2768.9,2768.3,0.37683321]
[1643763929965,0.1806,2768.8,2768.3,0.37683321]
[1643763930769,0.1806,2768.8,2768.3,2.59140616]
[1643763930979,0.1804,2769.2,2768.3,2.59140616]
[1643763931166,0.1804,2769.5,2769.4,0.85355339]
[1643763931365,1.70711337,2769.5,2769.4,0.85355339]
[1643763931768,0.1804,2769.5,2769.4,0.85355339]
[1643763932020,0.01276203,2770.1,2769.5,0.37733986]
[1643763932021,0.1804,2769.6,2769.5,0.37733986]
[1643763932221,0.1804,2770.0,2769.5,0.37733986]
[1643763932419,1.52651955,2769.9,2769.5,0.37733986]
[1643763932817,1.52651955,2769.8,2769.5,0.37733986]
[1643763933018,0.1804,2770.1,2769.5,0.37733986]
[1643763933225,0.244573,2770.3,2769.1,2.21051553]
[1643763933226,1.52655234,2770.0,2769.1,0.0050762]
[1643763933422,1.08318,2770.2,2768.8,1.0]
[1643763933423,3.99145812,2769.9,2768.8,1.1804]
[1643763933625,1.52655234,2769.8,2768.8,1.0]
[1643763933821,0.1804,2769.7,2768.8,1.0]
[1643763934019,1.52655234,2769.6,2768.8,1.0]
[1643763934223,2.12655234,2769.6,2769.1,0.35266569]
[1643763934424,1.52655234,2769.5,2769.1,0.35266569]
[1643763935426,1.52655234,2769.5,2768.7,0.87364967]
[1643763935664,0.1804,2769.9,2768.8,0.1801]
[1643763935867,0.1804,2769.9,2768.8,22.17275]
[1643763935868,1.52659052,2769.8,2768.8,22.17275]
[1643763936067,2.44417368,2770.0,2768.9,21.2704]
[1643763936271,2.44417368,2770.0,2768.9,22.27470839]
[1643763936468,2.44417368,2770.0,2769.2,0.01244866]
[1643763936666,2.44417368,2770.0,2769.3,1.48331704]
[1643763936867,2.0,2770.5,2769.3,0.3605]
[1643763937169,1.70679803,2770.4,2769.3,0.126]
[1643763937368,2.1804,2770.5,2769.3,0.126]
[1643763937568,0.1804,2770.5,2769.4,0.1801]
[1643763937767,0.90263,2770.6,2769.4,0.1801]
[1643763937966,1.52627357,2770.5,2769.4,0.1801]
[1643763938168,1.82627357,2770.5,2770.0,0.75995716]
[1643763938367,1.82627357,2770.5,2769.9,0.37894946]
[1643763938368,0.90263,2770.6,2769.9,0.37894946]
[1643763938570,3.50492496,2770.5,2769.4,3.94811824]
[1643763938779,3.50492496,2770.5,2769.5,1.0]
[1643763938780,1.526239,2770.4,2769.5,1.0]
[1643763939169,0.1804,2770.5,2769.5,1.0]
[1643763939618,0.1804,2770.5,2769.8,0.74037076]
[1643763940217,2.14893146,2770.5,2769.8,0.74037076]
[1643763940414,0.7804,2770.5,2769.8,0.74037076]
[1643763940814,2.73814914,2770.5,2769.8,0.74037076]
[1643763941017,0.7804,2770.5,2769.8,0.74037076]
[1643763941216,0.1804,2770.5,2769.8,0.74037076]
[1643763941422,0.1804,2770.7,2769.9,0.1801]
[1643763941617,0.27639994,2770.8,2770.2,0.36199756]
[1643763941816,0.27639994,2770.8,2769.8,0.74037076]
[1643763942018,3.65746671,2770.7,2769.8,0.74037076]
[1643763942319,3.65746671,2770.7,2769.5,0.1804]
[1643763942320,2.42890339,2770.6,2769.5,0.1804]
[1643763942516,4.65412593,2770.5,2769.4,3.7643]
[1643763942719,2.82625339,2770.4,2769.4,3.7643]
[1643763943015,2.5221499,2770.3,2769.6,0.34637555]
[1643763943676,2.5221499,2770.3,2769.2,4.769]
[1643763943877,1.519,2770.2,2769.2,3.5272]
[1643763944083,2.77220166,2770.1,2768.9,10.9524]
[1643763944277,0.519,2770.0,2768.9,3.9457]
[1643763944475,2.21698536,2769.9,2768.9,3.9457]
[1643763944675,0.519,2769.8,2768.8,6.8125]
[1643763944879,0.1804,2769.7,2769.1,1.22264526]
[1643763945279,0.1804,2769.7,2768.6,5.1676]
[1643763945577,0.1804,2769.7,2768.7,0.1804]
[1643763945578,0.3,2769.7,2768.7,0.1804]
[1643763946380,0.3,2769.7,2769.1,1.1070602]
[1643763946584,0.3,2769.7,2768.8,0.1801]
[1643763946776,0.6,2769.9,2768.9,0.1804]
[1643763947207,0.4804,2770.0,2768.9,0.1804]
[1643763947412,0.3,2769.9,2769.5,0.77876778]
[1643763947608,0.1804,2770.1,2768.9,0.1804]
[1643763948011,2.14975608,2770.1,2768.9,0.1804]
[1643763948212,0.1804,2770.1,2768.9,0.1804]
[1643763948612,0.1804,2770.1,2769.1,0.93749621]
[1643763951163,0.1804,2770.1,2769.1,1.23749621]
[1643763951565,0.1804,2770.1,2769.6,0.69419583]
[1643763951769,4.36061256,2770.2,2769.6,0.69419583]
[1643763951966,4.36061256,2770.2,2769.1,0.1804]
[1643763952364,4.18021256,2770.2,2769.1,0.1804]
[1643763952764,4.18021256,2770.2,2769.5,0.35795346]
[1643763952966,4.18021256,2770.2,2769.4,0.91838844]
[1643763953164,4.18021256,2770.2,2769.1,0.1804]
[1643763953365,0.1804,2770.1,2769.1,0.1804]
[1643763954415,0.1804,2770.3,2769.0,0.1804]
[1643763954615,0.6994,2770.3,2769.0,0.1804]
[1643763954818,0.6994,2770.3,2769.5,0.42851806]
[1643763955015,0.6994,2770.3,2769.0,0.1804]
[1643763955415,0.6994,2770.3,2769.3,0.85239491]
[1643763956015,0.6994,2770.3,2769.1,0.43135626]
[1643763956215,0.6994,2770.3,2769.1,0.73135626]
[1643763957114,0.6994,2770.3,2769.3,0.80631357]
[1643763958658,0.6494,2770.3,2769.3,0.80631357]
[1643763959765,0.6494,2770.3,2769.9,0.3267911]
[1643763959962,0.519,2770.3,2769.9,0.3267911]